bitfinex/quotes_ETHUSD_20240827
["timestamp","ask_amount","ask_price","bid_price","bid_amount"]
[1724754238336,3.76662,2654.9,2654.2,11.87068]
[1724754238629,7.53332,2654.9,2654.2,11.87068]
[1724754239397,7.53332,2654.9,2654.2,13.07678391]
[1724754239596,7.53332,2654.9,2654.2,9.30930391]
[1724754239597,3.7669,2654.7,2654.2,9.30930391]
[1724754239834,3.7669,2654.7,2654.2,8.1032]
[1724754240042,3.76722,2654.5,2653.9,7.7836]
[1724754241098,5.29192873,2654.7,2654.1,3.76767]
[1724754241099,1.52493873,2654.7,2654.1,3.76767]
[1724754241435,4.52493873,2654.8,2654.2,4.144297]
[1724754241619,6.76686,2654.8,2654.1,6.83670532]
[1724754242441,6.76686,2654.8,2654.1,8.67552785]
[1724754243320,3.7669,2654.7,2654.1,8.67545785]
[1724754243739,3.7669,2654.7,2654.1,4.90777785]
[1724754244032,3.7669,2654.7,2654.1,3.06895532]
[1724754244737,7.5339,2654.7,2654.1,3.06895532]
[1724754245034,3.76706,2654.6,2654.1,3.06895532]
[1724754245441,3.7669,2654.7,2654.1,3.06895532]
[1724754245654,3.7669,2654.7,2654.2,0.68367753]
[1724754245807,3.0,2654.8,2654.2,0.68367753]
[1724754246009,3.0,2654.8,2654.2,3.7676]
[1724754246934,3.0,2654.8,2654.1,6.83668532]
[1724754246935,3.76692,2654.7,2654.1,6.83668532]
[1724754247235,3.76711,2654.6,2654.1,3.06895532]
[1724754247639,3.76692,2654.7,2653.9,7.7836]
[1724754247640,3.76743,2654.4,2653.9,7.7836]
[1724754247938,3.7675,2654.3,2653.9,7.7836]
[1724754248397,3.7675,2654.3,2653.8,3.06895532]
[1724754248793,5.29212873,2654.5,2653.8,6.83704532]
[1724754249055,5.29212873,2654.5,2653.8,4.94419685]
[1724754249222,3.76748,2654.3,2653.8,3.06895532]
[1724754249427,1.52493873,2654.4,2653.6,8.147]
[1724754249664,3.76797,2654.0,2653.3,7.6437]
[1724754249955,5.29290873,2654.0,2653.3,7.6437]
[1724754250269,3.76861,2653.5,2653.0,7.6437]
[1724754250465,3.76897,2653.3,2653.0,7.6437]
[1724754250629,3.76897,2653.3,2652.7,7.6437]
[1724754250831,3.76897,2653.3,2652.7,8.32757753]
[1724754251039,3.76905,2653.2,2652.4,8.2282]
[1724754251349,3.76996,2652.6,2651.8,11.99918]
[1724754251637,5.29489873,2652.6,2651.9,3.77079]
[1724754251839,1.52493873,2652.6,2652.0,4.970599]
[1724754252154,1.92384716,2652.7,2652.1,3.77058]
[1724754252155,1.52493873,2652.7,2652.1,3.77058]
[1724754252460,1.52493873,2652.6,2652.2,0.8114843]
[1724754252615,1.52493873,2652.7,2652.0,8.03954432]
[1724754252813,1.52493873,2652.8,2652.1,4.95158543]
[1724754253053,4.52493873,2652.8,2652.1,4.95158543]
[1724754253214,3.0,2652.8,2652.1,4.95158543]
[1724754253818,3.0,2652.8,2652.2,3.77043]
[1724754254155,4.52493873,2653.1,2652.5,3.77001]
[1724754254353,3.0,2653.0,2652.5,3.77001]
[1724754254858,3.0,2653.1,2652.5,3.77001]
[1724754255220,6.76919,2653.1,2652.4,7.8992]
[1724754255759,3.0,2653.1,2652.4,13.27309923]
[1724754256696,3.0,2653.1,2652.5,3.77002]
[1724754257247,3.0,2653.1,2652.4,9.50294923]
[1724754257583,6.76926,2653.1,2652.4,9.50294923]
[1724754258261,3.0,2653.1,2652.4,13.27309923]
[1724754258483,3.0,2653.1,2652.5,4.26136692]
[1724754259084,1.52493873,2653.4,2652.6,3.06895532]
[1724754259262,2.30530969,2653.8,2652.6,3.06895532]
[1724754259263,1.52493873,2653.6,2652.6,3.06895532]
[1724754259470,3.76904,2653.2,2652.6,3.06895532]
[1724754259779,3.77084,2652.0,2651.5,7.8133]
[1724754259979,3.77049,2652.2,2651.4,0.005]
[1724754260163,3.77074,2652.0,2651.4,0.005]
[1724754262043,7.5411,2652.2,2651.4,3.77659]
[1724754262247,3.77061,2652.1,2651.4,0.005]
[1724754262484,3.77061,2652.1,2651.4,1.15642543]
[1724754264752,3.77063,2652.1,2651.4,4.92791543]
[1724754265062,3.0,2652.4,2651.5,0.86995454]
[1724754265252,3.77029,2652.4,2651.7,3.77115]
[1724754265458,3.0,2652.3,2651.7,3.77115]
[1724754266607,12.08255,2652.6,2651.8,15.09919]
[1724754266608,3.7699,2652.6,2651.8,15.09919]
[1724754266754,3.7699,2652.6,2651.8,11.32821]
[1724754266958,7.53987,2652.6,2651.8,11.32821]
[1724754267195,3.77003,2652.5,2651.8,11.32821]
[1724754267554,3.7699,2652.6,2651.8,11.32821]
[1724754267756,3.7699,2652.6,2651.5,7.6491]
[1724754267958,3.7699,2652.6,2651.4,0.005]
[1724754267959,3.7702,2652.4,2651.4,0.005]
[1724754268191,7.54132,2652.1,2651.4,0.005]
[1724754268461,3.06895532,2651.5,2651.4,0.005]
[1724754268850,6.06895532,2651.5,2651.4,0.005]
[1724754269051,13.61185532,2651.5,2651.4,0.005]
[1724754269252,9.84040532,2651.5,2651.4,0.005]
[1724754269704,13.61185532,2651.5,2651.4,0.005]
[1724754269857,10.51739532,2651.5,2651.4,0.005]
[1724754270470,3.06895532,2652.0,2651.4,0.005]
[1724754270671,3.77088,2651.9,2651.4,0.005]
[1724754270880,6.77112,2651.8,2651.4,0.005]
[1724754271390,3.77112,2651.8,2651.4,0.005]
[1724754271823,7.54228,2651.8,2651.4,0.005]
[1724754271978,3.77112,2651.8,2651.4,0.005]
[1724754272376,3.77128,2651.7,2651.4,0.005]
[1724754272880,7.5429,2651.5,2651.4,0.005]
[1724754273377,3.77145,2651.5,2651.4,0.005]
[1724754274174,3.77135,2651.6,2651.4,0.005]
[1724754274577,3.77145,2651.5,2651.4,0.005]
[1724754275432,7.5429,2651.5,2651.4,0.005]
[1724754275721,7.942207,2651.5,2651.4,0.005]
[1724754276032,10.942207,2651.5,2651.4,0.005]
[1724754277497,3.77126,2651.7,2651.4,0.005]
[1724754277841,3.77145,2651.5,2651.4,0.005]
[1724754278496,3.77126,2651.7,2651.4,0.005]
[1724754278728,3.77145,2651.5,2651.4,0.005]
[1724754279141,7.5429,2651.5,2651.4,0.005]
[1724754279355,15.109,2651.5,2651.4,0.005]
[1724754279504,18.109,2651.5,2651.4,0.005]
[1724754280813,6.77145,2651.5,2651.4,0.005]
[1724754281021,18.8627,2651.5,2651.4,0.005]
[1724754281346,22.63415,2651.5,2651.4,0.005]
[1724754282134,18.8627,2651.5,2651.4,0.005]
[1724754283119,10.5429,2651.5,2651.4,0.005]
[1724754284020,6.77145,2651.5,2651.4,0.005]
[1724754284915,3.77145,2651.5,2651.4,0.005]
[1724754285125,27.24062432,2651.5,2651.4,0.005]
[1724754285428,30.79062432,2651.5,2651.4,0.005]
[1724754286769,26.46917432,2651.5,2651.4,0.005]
[1724754288427,27.01917432,2651.5,2651.4,0.005]
[1724754288631,0.7,2651.2,2650.0,42.31]
[1724754288817,3.77344,2650.1,2650.0,42.31]
[1724754289032,7.54688,2650.1,2650.0,42.31]
[1724754289242,7.54688,2650.1,2650.0,38.53411323]
[1724754289243,21.93615532,2650.1,2650.0,38.53411323]
[1724754289416,33.33265532,2650.1,2650.0,31.85986135]
[1724754289621,40.98789732,2650.1,2650.0,7.49544309]
[1724754289849,19.57005,2649.7,2649.6,1e-05]
[1724754290027,35.65771832,2649.7,2649.6,1e-05]
[1724754290243,15.79888,2649.2,2649.1,2.5e-06]
[1724754290446,0.7,2648.8,2648.3,0.0232025]
[1724754290651,7.55172,2648.4,2648.3,0.0232025]
[1724754290862,3.77539,2648.8,2648.3,0.0232025]
[1724754291160,3.77586,2648.4,2648.3,0.0232025]
[1724754291518,7.55172,2648.4,2648.3,0.0232025]
[1724754292065,14.87758,2648.4,2648.3,0.0232025]
[1724754292220,11.10172,2648.4,2648.3,0.0232025]
[1724754292566,15.57758,2648.4,2648.3,0.0232025]
[1724754292873,10.55172,2648.4,2648.3,0.0232025]
[1724754293033,6.77586,2648.4,2648.3,0.0232025]
[1724754293235,3.77573,2648.5,2648.3,0.0232025]
[1724754293436,4.15166,2649.8,2648.3,0.0232025]
[1724754293437,0.7,2649.3,2648.3,0.0232025]
[1724754293635,3.77511,2649.0,2648.3,1.19699889]
[1724754294194,3.7753,2648.8,2648.3,1.19699889]
[1724754294700,3.77505,2649.0,2648.3,1.19699889]
[1724754294850,3.77505,2649.0,2648.4,1.29117603]
[1724754295049,3.77476,2649.2,2648.4,1.29117603]
[1724754295050,3.77449,2649.4,2648.4,1.29117603]
[1724754295289,3.77449,2649.4,2648.3,0.0232025]
[1724754295290,4.47478,2649.2,2648.3,0.0232025]
[1724754295476,3.77558,2648.6,2648.3,0.0232025]
[1724754296300,3.77533,2648.8,2648.3,0.0232025]
[1724754296456,3.77559,2648.6,2648.3,0.0232025]
[1724754296874,3.77508,2649.0,2648.3,0.0232025]
[1724754297080,3.7753,2648.8,2648.3,0.0232025]
[1724754297355,7.55021,2649.0,2648.3,0.0232025]
[1724754297573,3.77508,2649.0,2648.3,0.0232025]
[1724754298475,7.55021,2649.0,2648.3,0.0232025]
[1724754298700,7.54961,2649.2,2648.3,0.0232025]
[1724754298851,3.77501,2649.0,2648.3,1.57461689]
[1724754299253,3.77478,2649.2,2648.3,1.57461689]
[1724754299254,3.77478,2649.2,2648.3,5.35053689]
[1724754299553,3.77493,2649.1,2648.4,7.8794]
[1724754300057,3.7745,2649.4,2648.6,8.3515]
[1724754300254,3.77422,2649.6,2648.8,4.10966143]
[1724754300568,3.774,2649.8,2649.0,8.3515]
[1724754300768,7.54798,2649.8,2649.0,8.3515]
[1724754300964,8.5194,2650.5,2649.0,8.3515]
[1724754300965,8.91398284,2650.5,2649.0,8.3515]
[1724754301164,3.77386,2649.8,2649.0,8.3515]
[1724754301402,3.77386,2649.8,2649.0,13.37259614]
[1724754301591,3.77365,2650.0,2649.1,11.80616143]
[1724754301763,3.77365,2650.0,2649.4,4.10966143]
[1724754302304,3.7731,2650.4,2649.5,8.3003]
[1724754302803,3.77315,2650.3,2649.8,8.3639]
[1724754302958,3.77315,2650.3,2649.4,3.77437]
[1724754302959,3.77238,2650.9,2650.1,12.13733]
[1724754303158,3.77238,2650.9,2650.1,8.3639]
[1724754303398,3.77208,2651.1,2650.3,8.3639]
[1724754303895,3.77202,2651.1,2650.4,8.43935562]
[1724754304099,3.77153,2651.5,2650.7,7.6814]
[1724754304322,11.35506,2652.3,2651.1,7.6814]
[1724754304323,3.77103,2651.8,2651.1,7.6814]
[1724754305298,3.77079,2652.0,2651.2,3.77176]
[1724754305504,3.77089,2651.9,2651.2,8.3504]
[1724754305875,3.76977,2652.7,2651.2,8.3504]
[1724754305876,7.54109,2652.2,2651.3,3.77171]
[1724754306204,3.77076,2652.0,2651.3,8.0907]
[1724754306377,3.7705,2652.2,2651.4,8.0907]
[1724754306698,3.7705,2652.2,2651.5,8.253]
[1724754307001,3.77021,2652.4,2651.5,12.36266143]
[1724754307212,3.77021,2652.4,2651.7,8.253]
[1724754308403,0.7,2653.2,2651.7,8.253]
[1724754308607,3.77102,2651.8,2651.7,8.253]
[1724754309261,3.77036,2652.3,2651.7,8.253]
[1724754309465,3.77059,2652.1,2651.7,8.253]
[1724754310191,3.77096,2651.9,2651.7,8.253]
[1724754311259,3.77081,2652.0,2651.7,8.253]
[1724754311461,3.77096,2651.9,2651.7,8.253]
[1724754311660,3.7713,2651.6,2651.5,8.3126]
[1724754311898,3.77128,2651.7,2651.5,8.3126]
[1724754312701,6.77067,2652.1,2651.5,8.3126]
[1724754312997,6.77008,2652.5,2651.5,8.3126]
[1724754313341,3.7711,2651.8,2651.5,8.3126]
[1724754313528,7.54225,2651.8,2651.5,8.3126]
[1724754313751,7.5426,2651.6,2651.5,8.3126]
[1724754314045,19.18476,2653.1,2650.2,7.7383]
[1724754314046,3.77247,2650.8,2650.2,7.7383]
[1724754314255,3.77298,2650.5,2650.2,7.7383]
[1724754314548,3.77315,2650.3,2650.2,7.7383]
[1724754315846,3.77262,2650.7,2650.2,7.7383]
[1724754316052,3.77267,2650.7,2650.2,7.7383]
[1724754316342,7.54537,2650.7,2650.2,7.7383]
[1724754316553,3.77267,2650.7,2650.2,7.7383]
[1724754316756,3.77217,2651.0,2650.2,11.51151]
[1724754316904,3.0,2651.4,2650.2,7.7383]
[1724754317242,3.7723,2650.9,2650.2,7.7383]
[1724754317450,3.77269,2650.7,2650.2,7.7383]
[1724754317956,3.77276,2650.6,2650.2,7.7383]
[1724754318713,3.77251,2650.8,2650.2,7.7383]
[1724754318912,3.77265,2650.7,2650.2,7.7383]
[1724754319359,3.77315,2650.3,2650.2,7.7383]
[1724754319664,3.77362,2650.0,2649.5,9.24]
[1724754319856,3.77284,2650.6,2649.5,9.24]
[1724754319857,3.7734,2650.2,2649.5,9.24]
[1724754320222,3.77339,2650.2,2649.5,9.24]
[1724754320872,3.77308,2650.4,2649.6,9.00457808]
[1724754321046,3.7728,2650.6,2649.8,8.9291]
[1724754321252,3.77251,2650.8,2650.0,8.9291]
[1724754321417,3.7726,2650.7,2650.0,8.9291]
[1724754321622,3.77251,2650.8,2650.0,8.9291]
[1724754321623,3.77274,2650.6,2650.0,8.9291]
[1724754322046,3.77287,2650.5,2650.0,8.9291]
[1724754322365,3.77274,2650.6,2650.0,8.9291]
[1724754322548,3.77262,2650.7,2650.0,8.9291]
[1724754322725,3.77262,2650.7,2650.0,10.199371]
[1724754322924,3.77255,2650.8,2650.0,10.199371]
[1724754323142,3.77255,2650.8,2650.1,0.07546099]
[1724754323363,3.77255,2650.8,2650.0,10.199371]
[1724754323364,3.77253,2650.8,2650.2,9.0847]
[1724754323859,3.77213,2651.1,2650.2,9.0847]
[1724754324168,3.77278,2650.6,2650.2,9.0847]
[1724754324320,7.54514,2650.8,2650.2,9.0847]
[1724754324524,7.54447,2651.0,2650.2,12.85798]
[1724754324725,3.77195,2651.2,2650.3,9.41475736]
[1724754324953,3.77195,2651.2,2650.3,3.84847736]
[1724754325124,3.77195,2651.2,2650.5,8.7729]
[1724754325443,3.77203,2651.1,2650.5,8.7729]
[1724754325770,3.77195,2651.2,2650.5,8.7729]
[1724754326272,3.77217,2651.0,2650.5,8.7729]
[1724754326562,3.7723,2650.9,2650.5,8.7729]
[1724754326765,3.77246,2650.8,2650.5,8.7729]
[1724754327133,3.77261,2650.7,2650.5,8.7729]
[1724754327339,7.54528,2650.7,2650.5,8.7729]
[1724754327536,3.7724,2650.9,2650.5,8.7729]
[1724754328329,3.77253,2650.8,2650.5,8.7729]
[1724754328727,3.7724,2650.9,2650.5,8.7729]
[1724754329675,3.7726,2650.7,2650.5,8.7729]
[1724754329973,3.77301,2650.5,2650.0,8.7183]
[1724754330130,3.77266,2650.7,2650.0,8.7183]
[1724754330759,3.77219,2651.0,2650.0,8.7183]
[1724754330975,3.773,2650.5,2650.0,8.7183]
[1724754331129,6.77236,2650.9,2650.0,8.7183]
[1724754331130,3.0,2650.9,2650.0,8.7183]
[1724754331324,3.77207,2651.1,2650.0,8.7183]
[1724754331325,3.77245,2650.8,2650.2,8.5025]
[1724754331581,3.77269,2650.7,2650.2,8.5025]
[1724754331989,7.28,2651.8,2650.4,8.4546]
[1724754332198,3.77239,2650.9,2650.6,9.3879]
[1724754332493,3.77258,2650.7,2650.6,9.3879]
[1724754332792,4.46023233,2651.6,2650.6,9.3879]
[1724754332793,9.3871,2651.8,2650.6,9.3879]
[1724754332976,7.54393,2651.2,2650.6,9.3879]
[1724754333170,7.54392,2651.2,2650.6,9.3879]
[1724754333498,3.7719,2651.2,2650.6,9.3879]
[1724754334095,3.77165,2651.4,2650.6,9.3879]
[1724754334400,3.77174,2651.3,2650.6,9.3879]
[1724754334751,3.77165,2651.4,2650.6,14.85396]
[1724754334954,0.39445014,2652.2,2651.1,8.7507]
[1724754335256,9.3164,2653.0,2651.6,12.52188]
[1724754335257,3.7699,2652.6,2651.6,12.52188]
[1724754335461,0.39446821,2653.0,2652.5,8.9603]
[1724754335654,3.76848,2653.6,2652.8,3.76956]
[1724754335854,3.76848,2653.6,2652.6,0.66454582]
[1724754335855,3.76833,2653.7,2653.0,8.9603]
[1724754336086,3.76823,2653.8,2653.0,8.9603]
[1724754336297,3.76792,2654.0,2653.2,8.7184]
[1724754336457,3.76808,2653.9,2653.2,8.7184]
[1724754336801,3.76818,2653.8,2653.2,8.7184]
[1724754337366,3.76835,2653.7,2653.2,8.7184]
[1724754337759,3.76846,2653.6,2653.2,8.7184]
[1724754338091,3.76835,2653.7,2653.2,8.7184]
[1724754338254,3.76846,2653.6,2653.2,8.7184]
[1724754338456,3.76847,2653.6,2653.2,8.7184]
[1724754338659,3.76847,2653.6,2652.8,3.76959]
[1724754338660,3.76889,2653.3,2652.8,8.7888]
[1724754338858,3.76783,2654.1,2652.8,8.7888]
[1724754338859,3.76945,2652.9,2652.8,8.7888]
[1724754339258,3.76909,2653.2,2652.8,8.7888]
[1724754339564,3.7692,2653.1,2652.8,8.7888]
[1724754339800,3.7688,2653.4,2652.8,8.7888]
[1724754339979,6.76849,2653.6,2652.8,8.7888]
[1724754340163,3.76871,2653.5,2652.8,8.7888]
[1724754341003,6.76849,2653.6,2652.8,12.55839]
[1724754341174,3.76823,2653.8,2653.0,9.1831]
[1724754341371,3.0,2653.7,2653.0,9.1831]
[1724754341683,6.76841,2653.7,2653.0,9.1831]
[1724754341890,3.76823,2653.8,2653.0,10.52289745]
[1724754342071,3.76823,2653.8,2653.1,0.07537567]
[1724754342571,3.76791,2654.0,2653.1,0.0753729]
[1724754342772,3.76791,2654.0,2653.2,12.47721]
[1724754343013,3.76791,2654.0,2653.2,8.7082]
[1724754343014,3.76819,2653.8,2653.2,8.7082]
[1724754343175,3.76871,2653.5,2653.2,8.7082]
[1724754343592,3.0,2654.3,2653.2,8.7082]
[1724754343593,3.76843,2653.7,2653.2,8.7082]
[1724754344466,3.76848,2653.6,2653.2,8.7082]
[1724754344775,3.76885,2653.4,2653.2,8.7082]
[1724754344976,3.76889,2653.3,2653.2,8.7082]
[1724754345159,3.7693,2653.1,2652.8,9.322]
[1724754345507,3.76871,2653.5,2652.8,9.322]
[1724754345666,3.76871,2653.5,2652.8,10.631164]
[1724754345861,3.76871,2653.5,2652.8,9.322]
[1724754346109,3.76889,2653.3,2652.8,9.322]
[1724754346599,3.76912,2653.2,2652.8,9.322]
[1724754347371,3.76889,2653.3,2652.8,9.322]
[1724754347592,3.76911,2653.2,2652.8,9.322]
[1724754348379,3.76889,2653.3,2652.8,9.322]
[1724754348568,3.76901,2653.3,2652.8,9.322]
[1724754348912,3.7684,2653.7,2652.8,9.322]
[1724754348913,3.76945,2652.9,2652.8,9.322]
[1724754349211,3.76931,2653.0,2652.3,8.7016]
[1724754349404,3.7693,2653.1,2652.3,12.47182]
[1724754349610,3.76909,2653.2,2652.3,12.47182]
[1724754349611,3.76933,2653.0,2652.3,12.47182]
[1724754349793,3.76927,2653.1,2652.3,14.096043]
[1724754350315,3.76933,2653.0,2652.3,14.096043]
[1724754350649,3.76909,2653.2,2652.3,14.096013]
[1724754350816,3.76909,2653.2,2651.8,3.77098]
[1724754350817,3.76877,2653.4,2652.6,8.5657]
[1724754350984,3.76864,2653.5,2652.8,8.5657]
[1724754351189,6.76864,2653.5,2652.8,8.5657]
[1724754352313,7.53707,2653.6,2652.9,8.6266]
[1724754352607,3.76853,2653.6,2652.9,9.2462]
[1724754352794,3.76869,2653.5,2652.9,8.6266]
[1724754353201,3.7689,2653.3,2652.9,8.6266]
[1724754354010,3.76872,2653.5,2652.9,8.6266]
[1724754354403,3.76886,2653.4,2652.9,8.6266]
[1724754354586,3.76896,2653.3,2652.9,8.6266]
[1724754354780,3.76874,2653.5,2652.9,8.6266]
[1724754354982,3.76855,2653.6,2652.9,8.6266]
[1724754355181,3.76855,2653.6,2652.9,10.243172]
[1724754355378,3.76855,2653.6,2652.9,14.012592]
[1724754355613,3.76854,2653.6,2652.9,14.012592]
[1724754355814,10.53659,2653.8,2653.0,0.0753776]
[1724754355977,6.76835,2653.7,2653.1,9.1763]
[1724754356381,3.0,2653.7,2653.1,9.1763]
[1724754356688,3.76903,2653.2,2653.1,9.1763]
[1724754357719,3.76878,2653.4,2653.1,9.1763]
[1724754358096,3.76897,2653.3,2653.1,9.1763]
[1724754358588,3.76824,2653.8,2652.6,8.771]
[1724754358788,3.76904,2653.2,2652.7,0.8771]
[1724754359085,3.76911,2653.2,2652.6,8.771]
[1724754359888,3.76896,2653.3,2652.6,8.771]
[1724754359889,7.53795,2653.3,2652.6,8.771]
[1724754360090,3.76907,2653.2,2652.6,8.771]
[1724754360287,0.39439103,2654.4,2653.0,4.09338012]
[1724754360487,0.39439103,2654.4,2652.9,8.9843]
[1724754360488,8.7814,2654.5,2653.2,8.9843]
[1724754360791,3.76889,2653.3,2653.2,8.9843]
[1724754361028,3.76867,2653.5,2653.2,8.9843]
[1724754361207,7.53738,2653.5,2653.2,8.9843]
[1724754361389,3.76867,2653.5,2653.2,8.9843]
[1724754361912,3.76852,2653.6,2653.2,8.9843]
[1724754362499,3.7684,2653.7,2653.2,8.9843]
[1724754362705,3.0,2653.6,2653.2,8.9843]
[1724754363197,3.0,2653.6,2653.2,12.75329]
[1724754363392,6.76818,2653.8,2653.2,9.88273]
[1724754363689,6.76818,2653.8,2653.2,8.9843]
[1724754364220,3.76833,2653.7,2653.2,8.9843]
[1724754364525,3.0,2653.6,2653.2,8.9843]
[1724754364734,3.76868,2653.5,2653.2,8.9843]
[1724754365396,3.76875,2653.4,2653.2,8.9843]
[1724754365730,3.76868,2653.5,2653.2,8.9843]
[1724754366590,7.53778,2653.3,2652.4,7.86345012]
[1724754366840,7.53778,2653.3,2651.1,0.05]
[1724754366841,3.76961,2652.8,2652.5,9.0605]
[1724754367137,10.53825,2653.2,2652.5,9.0605]
[1724754367342,6.76909,2653.2,2652.5,9.0605]
[1724754367493,3.76953,2652.9,2652.5,9.0605]
[1724754368502,3.76924,2653.1,2652.5,9.0605]
[1724754369202,3.0,2653.2,2652.5,12.83043]
[1724754369433,6.76906,2653.2,2652.5,12.83043]
[1724754369947,3.0,2653.2,2652.5,17.883423]
[1724754370267,3.76834,2653.7,2653.0,8.9329]
[1724754370268,3.76842,2653.7,2653.0,8.9329]
[1724754370418,3.76842,2653.7,2653.1,0.96866581]
[1724754370624,3.76842,2653.7,2653.1,0.07537581]
[1724754371562,3.7684,2653.7,2653.0,8.9329]
[1724754371723,3.7678,2654.1,2653.0,8.9329]
[1724754371724,7.53772,2653.4,2653.0,8.9329]
[1724754372064,3.76885,2653.4,2653.0,8.9329]
[1724754372876,3.76821,2653.8,2653.0,8.9329]
[1724754372877,3.76917,2653.1,2653.0,8.9329]
[1724754373202,3.76882,2653.4,2653.0,8.9329]
[1724754373347,3.76903,2653.2,2653.0,8.9329]
[1724754373517,3.0,2653.9,2653.0,8.9329]
[1724754373518,3.76862,2653.5,2653.0,8.9329]
[1724754373723,3.76875,2653.4,2653.0,8.9329]
[1724754373921,3.76862,2653.5,2653.0,8.9329]
[1724754374347,3.76875,2653.4,2653.0,8.9329]
[1724754374736,3.76862,2653.5,2653.0,8.9329]
[1724754375767,3.76878,2653.4,2653.0,8.9329]
[1724754376059,3.76889,2653.3,2653.0,8.9329]
[1724754376763,3.76878,2653.4,2653.0,8.9329]
[1724754377839,3.76862,2653.5,2653.0,8.9329]
[1724754378344,3.76882,2653.4,2653.0,8.9329]
[1724754379957,1.52493873,2653.4,2653.0,8.9329]
[1724754380646,1.52493873,2653.1,2653.0,8.9329]
[1724754381655,1.91960588,2653.1,2653.0,8.9329]
[1724754381837,1.91960588,2653.2,2653.0,8.9329]
[1724754382173,1.54921651,2653.1,2653.0,8.9329]
[1724754383130,1.93655342,2653.3,2653.0,8.9329]
[1724754383131,1.54921651,2653.2,2653.0,8.9329]
[1724754383462,6.0927641,2653.3,2653.0,8.9329]
[1724754383780,1.93673653,2653.1,2653.0,8.9329]
[1724754384369,1.936773,2653.1,2653.0,8.9329]
[1724754385179,1.936773,2653.2,2653.0,9.82619]
[1724754385367,1.54955641,2653.3,2653.1,3.76917]
[1724754385566,1.54955641,2653.3,2653.2,8.7037]
[1724754385767,1.936773,2653.5,2653.2,8.7037]
[1724754385768,1.54955641,2653.4,2653.2,8.7037]
[1724754385955,1.54955641,2653.4,2653.2,10.83550591]
[1724754386152,1.54955641,2653.3,2653.2,10.83550591]
[1724754386678,3.76818,2653.8,2653.2,10.83550591]
[1724754386679,1.936773,2653.4,2653.2,10.83550591]
[1724754386980,1.93712262,2653.4,2653.2,8.7037]
[1724754387166,1.5497284,2653.3,2653.2,8.7037]
[1724754391110,1.93713134,2653.3,2653.2,8.7037]
[1724754391624,1.93689566,2653.4,2653.2,8.7037]
[1724754391793,1.93689566,2653.3,2653.2,8.7037]
[1724754392359,2.3242748,2653.3,2652.6,12.47986]
[1724754392524,1.54951871,2652.9,2652.6,13.156855]
[1724754392716,1.54951871,2652.9,2652.7,15.60026813]
[1724754392918,1.54951871,2653.0,2652.8,1.62772631]
[1724754393112,1.54951871,2653.0,2652.8,1.70310994]
[1724754393929,1.54951871,2653.0,2652.8,0.07538363]
[1724754394454,1.54951871,2652.9,2652.8,0.07538363]
[1724754394663,1.54951871,2652.9,2652.7,8.6861]
[1724754394870,1.5492844,2652.8,2652.7,8.6861]
[1724754397255,1.93689839,2652.9,2652.2,8.9039]
[1724754397425,1.54945617,2652.5,2652.2,8.9039]
[1724754397629,1.93682022,2652.3,2652.2,8.9039]
[1724754397828,6.0943148,2652.5,2652.2,8.9039]
[1724754398060,3.76994,2652.6,2651.8,12.51244]
[1724754398061,2.3242748,2652.4,2651.8,12.51244]
[1724754398269,1.54868034,2652.1,2651.8,12.51244]
[1724754398445,1.54868034,2652.1,2651.8,14.44771033]
[1724754398737,1.54868034,2652.2,2651.8,17.51674367]
[1724754400436,1.54868034,2652.3,2651.8,17.51674367]
[1724754400673,1.54868034,2652.3,2651.9,1.75167437]
[1724754400880,1.54868034,2652.3,2651.9,5.52253437]
[1724754401093,1.54868034,2652.2,2652.1,3.77059]
[1724754401392,1.54868034,2652.5,2652.2,11.87355334]
[1724754401540,1.54868034,2652.6,2652.2,13.43796767]
[1724754402384,1.54868034,2652.5,2652.2,13.43796767]
[1724754402581,1.54868034,2652.6,2652.2,13.43796767]
[1724754402933,1.54868034,2652.6,2652.3,0.07539924]
[1724754403140,1.54868034,2652.6,2652.2,13.43796767]
[1724754405485,5.70300476,2652.8,2652.3,1.72084677]
[1724754405486,1.54868034,2652.7,2652.3,1.72084677]
[1724754406075,1.54868034,2652.7,2652.4,0.07539926]
[1724754406284,1.54868034,2652.8,2652.4,8.9378]
[1724754406448,1.54868034,2652.8,2652.4,11.57559494]
[1724754406980,1.54868034,2652.7,2652.4,11.57559494]
[1724754407659,1.54868034,2652.7,2652.4,8.9378]
[1724754408314,1.54868034,2652.6,2652.4,8.9378]
[1724754408480,1.54868034,2652.7,2651.4,3.77152]
[1724754408675,5.31864034,2652.6,2652.0,9.0459]
[1724754409802,5.31864034,2652.6,2652.0,12.81663]
[1724754410011,1.54868034,2652.6,2652.1,3.84598939]
[1724754410206,1.54868034,2652.7,2652.1,5.81916266]
[1724754410364,1.54868034,2652.6,2652.1,5.81916266]
[1724754410569,1.54868034,2652.7,2652.2,1.7934116]
[1724754410901,1.54868034,2652.6,2652.2,1.86881093]
[1724754411110,1.54868034,2652.7,2652.2,1.86881093]
[1724754411320,3.76995,2652.6,2652.0,9.0459]
[1724754411465,3.76968,2652.8,2651.7,3.77106]
[1724754411466,9.08914034,2652.4,2651.7,9.3711]
[1724754411671,1.54868034,2652.3,2651.7,9.3711]
[1724754411867,5.31927034,2652.1,2651.2,3.06905334]
[1724754412067,3.77104,2651.8,2651.3,9.3711]
[1724754412364,3.77135,2651.6,2651.3,9.3711]
[1724754412602,3.77135,2651.6,2650.3,5.9669]
[1724754412603,5.32003034,2651.6,2651.0,8.9901]
[1724754412807,5.32029034,2651.4,2651.0,8.9901]
[1724754413423,5.32029034,2651.4,2650.6,12.05915334]